bitfinex/quotes_SOLUSD_20220208
["timestamp","ask_amount","ask_price","bid_price","bid_amount"]
[1644298482515,12.6633,118.51,118.43,29.3344]
[1644298482716,48.39565485,118.51,118.44,39.08040529]
[1644298482917,48.35976699,118.51,118.44,39.08040529]
[1644298483317,50.46752248,118.51,118.44,39.33040529]
[1644298487523,50.46752248,118.51,118.44,51.99370529]
[1644298487722,48.35976699,118.51,118.44,51.99370529]
[1644298489942,48.35976699,118.51,118.44,64.23270529]
[1644298492346,48.35976699,118.51,118.43,23.3344]
[1644298492544,50.46752248,118.51,118.4,24.7049]
[1644298492744,50.46752248,118.51,118.43,6.0]
[1644298492943,50.46752248,118.51,118.42,29.9006]
[1644298493343,52.87014782,118.51,118.43,48.76540271]
[1644298493745,50.76239233,118.51,118.43,55.01540271]
[1644298493946,48.35976699,118.51,118.43,55.01540271]
[1644298494346,12.6633,118.51,118.43,55.01540271]
[1644298495345,53.45994753,118.51,118.43,55.01540271]
[1644298495547,12.6633,118.51,118.43,67.67980271]
[1644298495947,0.03588786,118.52,118.43,67.67980271]
[1644298496549,40.46631772,118.52,118.43,67.67980271]
[1644298497649,53.12791772,118.52,118.43,67.67980271]
[1644298502047,55.23567321,118.52,118.43,67.67980271]
[1644298504252,53.12791772,118.52,118.43,67.67980271]
[1644298507860,12.69748786,118.52,118.43,67.67980271]
[1644298512061,0.03588786,118.52,118.43,67.67980271]
[1644298513662,0.03588786,118.52,118.44,23.7179]
[1644298513862,76.36672199,118.53,118.46,12.6601]
[1644298514065,0.03588786,118.52,118.47,35.41373891]
[1644298514265,76.33083413,118.53,118.47,35.66373891]
[1644298515766,76.33083413,118.53,118.47,48.32403891]
[1644298516069,2.4385132,118.54,118.47,48.32403891]
[1644298516070,15.0976132,118.54,118.47,48.32403891]
[1644298516274,2.4385132,118.54,118.47,48.32403891]
[1644298516468,0.03588786,118.54,118.47,54.32403891]
[1644298516675,31.66652534,118.56,118.47,77.69843891]
[1644298516879,0.03588786,118.55,118.47,77.69843891]
[1644298517169,46.3013859,118.55,118.47,77.69843891]
[1644298517374,46.33727376,118.55,118.47,77.69843891]
[1644298517570,0.03588786,118.55,118.47,77.69843891]
[1644298517770,23.29978786,118.56,118.47,77.69843891]
[1644298517973,0.03588786,118.57,118.47,77.69843891]
[1644298518170,0.03588786,118.57,118.47,77.44843891]
[1644298518370,4.84211585,118.57,118.47,77.44843891]
[1644298518573,4.84211585,118.57,118.47,71.44843891]
[1644298519273,48.52332189,118.56,118.47,71.44843891]
[1644298519570,4.84211585,118.57,118.47,71.44843891]
[1644298519571,4.54626869,118.57,118.47,71.69843891]
[1644298519771,12.657,118.56,118.47,71.69843891]
[1644298520778,34.86279796,118.55,118.47,71.69843891]
[1644298520971,47.55648582,118.55,118.47,71.44843891]
[1644298521175,12.6578,118.55,118.47,71.44843891]
[1644298521572,1.20089873,118.54,118.47,71.44843891]
[1644298522374,13.85969873,118.54,118.47,71.69843891]
[1644298522576,41.15956469,118.53,118.47,71.69843891]
[1644298522874,42.36046342,118.53,118.47,71.69843891]
[1644298523075,1.20089873,118.53,118.47,71.69843891]
[1644298523276,1.20089873,118.53,118.47,77.69843891]
[1644298523476,1.20089873,118.54,118.47,77.69843891]
[1644298523777,1.20089873,118.54,118.47,90.04843891]
[1644298524376,1.20089873,118.54,118.47,84.04843891]
[1644298525477,13.85979873,118.54,118.47,83.79843891]
[1644298525683,1.20089873,118.53,118.47,83.79843891]
[1644298525877,13.89568659,118.54,118.47,83.79843891]
[1644298526078,13.85979873,118.54,118.47,83.79843891]
[1644298526879,13.85979873,118.54,118.47,84.04843891]
[1644298527380,40.57528257,118.53,118.47,84.04843891]
[1644298527579,54.4362813,118.53,118.47,71.69843891]
[1644298528381,13.86099873,118.53,118.47,71.44843891]
[1644298529808,13.86099873,118.53,118.47,71.69843891]
[1644298533009,13.86099873,118.53,118.47,81.85543891]
[1644298535707,1.20089873,118.53,118.47,81.85543891]
[1644298536811,13.86059873,118.53,118.47,81.85543891]
[1644298537014,13.86059873,118.53,118.47,71.69843891]
[1644298537512,1.20089873,118.53,118.47,85.73243891]
[1644298537711,1.20089873,118.54,118.47,85.73243891]
[1644298537913,1.20089873,118.55,118.47,85.73243891]
[1644298538113,1.23678659,118.55,118.47,85.73243891]
[1644298539312,1.23678659,118.55,118.47,77.69843891]
[1644298539516,37.86358659,118.55,118.47,77.69843891]
[1644298539715,37.86358659,118.55,118.47,71.69843891]
[1644298540215,1.20089873,118.54,118.47,71.69843891]
[1644298540417,1.20089873,118.54,118.47,71.44843891]
[1644298540716,37.82769873,118.55,118.47,71.44843891]
[1644298541117,37.86358659,118.55,118.47,71.44843891]
[1644298541317,1.20089873,118.54,118.47,71.44843891]
[1644298542219,1.20089873,118.54,118.47,71.69843891]
[1644298542419,37.82769873,118.55,118.47,71.69843891]
[1644298542617,1.20089873,118.54,118.47,71.69843891]
[1644298542917,25.16999873,118.55,118.47,71.69843891]
[1644298543117,25.20588659,118.55,118.47,77.69843891]
[1644298543719,1.23678659,118.55,118.47,77.69843891]
[1644298545721,1.20089873,118.54,118.47,77.69843891]
[1644298549130,1.20089873,118.55,118.47,77.69843891]
[1644298549327,1.20089873,118.55,118.47,86.85243891]
[1644298549728,1.23678659,118.56,118.47,86.85243891]
[1644298549929,0.03588786,118.56,118.47,99.02243891]
[1644298550328,0.03588786,118.56,118.47,113.86528303]
[1644298550531,1.23678659,118.59,118.47,121.25961448]
[1644298550730,1.23678659,118.59,118.47,120.07207303]
[1644298550930,1.23678659,118.59,118.47,142.63207303]
[1644298551130,0.03588786,118.58,118.47,142.63207303]
[1644298551330,0.03588786,118.58,118.47,143.81961448]
[1644298551529,0.03588786,118.59,118.47,143.81961448]
[1644298552028,0.03588786,118.59,118.47,142.63207303]
[1644298553333,2.40262534,118.63,118.48,69.0]
[1644298553532,26.38392534,118.65,118.52,12.6477]
[1644298553732,23.9813,118.65,118.53,24.4065]
[1644298553931,29.9813,118.65,118.53,24.4065]
[1644298554139,41.1188297,118.64,118.54,47.04384967]
[1644298554532,2.10775549,118.63,118.54,59.69674967]
[1644298554732,43.06164698,118.62,118.54,59.69674967]
[1644298555834,55.71304698,118.62,118.54,59.69674967]
[1644298556035,55.71304698,118.62,118.54,47.04384967]
[1644298556435,67.88304698,118.62,118.53,12.6539]
[1644298557037,12.6536,118.6,118.53,12.6539]
[1644298557634,45.53653188,118.59,118.54,37.82486062]
[1644298557935,12.6536,118.6,118.54,37.82486062]
[1644298558138,37.09235549,118.65,118.54,37.82486062]
[1644298558139,24.71065549,118.65,118.54,68.18066062]
[1644298558336,22.6029,118.65,118.55,1.73736559]
[1644298558735,22.6029,118.65,118.55,7.98736559]
[1644298559034,39.97926359,118.63,118.56,65.49323742]
[1644298559237,39.97926359,118.63,118.56,65.74323742]
[1644298559435,39.97926359,118.63,118.56,41.76673742]
[1644298559735,42.08701908,118.63,118.52,23.2501]
[1644298559934,24.9084,118.62,118.52,23.2501]
[1644298560136,24.9084,118.62,118.52,29.2501]
[1644298560536,38.2372591,118.61,118.53,71.48719992]
[1644298560740,38.2372591,118.61,118.54,12.6518]
[1644298560939,38.2372591,118.61,118.55,36.59582385]
[1644298561340,38.2372591,118.61,118.55,36.84582385]
[1644298561940,38.2372591,118.61,118.54,12.6518]
[1644298562138,38.2372591,118.61,118.54,0.25]
[1644298562541,24.9084,118.62,118.54,0.25]
[1644298563361,24.9084,118.62,118.53,23.8757]
[1644298563659,47.922351,118.61,118.54,37.97531544]
[1644298563859,47.922351,118.61,118.54,50.62791544]
[1644298565260,47.922351,118.61,118.54,50.87791544]
[1644298565460,47.922351,118.61,118.54,50.62791544]
[1644298568064,41.02610564,118.61,118.54,50.87791544]
[1644298568267,35.02610564,118.61,118.54,50.87791544]
[1644298568465,37.5612,118.62,118.54,50.87791544]
[1644298568667,30.9084,118.62,118.54,50.87791544]
[1644298569465,47.28853577,118.61,118.54,50.87791544]
[1644298570770,47.28853577,118.61,118.54,12.9026]
[1644298570970,2.10775549,118.6,118.49,23.4622]
[1644298571171,37.53495549,118.6,118.49,23.4622]
[1644298571569,35.4272,118.6,118.49,23.4622]
[1644298571870,36.99003379,118.59,118.5,39.98307313]
[1644298572071,49.16003379,118.59,118.5,39.98307313]
[1644298572269,23.4421,118.58,118.52,46.13497974]
[1644298572672,42.96487026,118.57,118.52,46.13497974]
[1644298573070,23.4421,118.58,118.52,46.13497974]
[1644298573570,36.0982,118.58,118.52,46.13497974]
[1644298573772,36.0982,118.58,118.52,46.38497974]
[1644298573970,84.18656872,118.58,118.52,46.38497974]
[1644298579473,71.53046872,118.58,118.52,59.03977974]
[1644298579872,71.53046872,118.58,118.52,46.38497974]
[1644298580373,23.4421,118.58,118.52,46.38497974]
[1644298580574,23.4421,118.58,118.52,59.03987974]
[1644298580977,23.4421,118.58,118.52,46.38497974]
[1644298581374,62.24304365,118.58,118.52,46.38497974]
[1644298581876,74.89904365,118.58,118.52,46.38497974]
[1644298582073,80.89904365,118.58,118.52,46.38497974]
[1644298582476,74.89904365,118.58,118.52,46.38497974]
[1644298582676,74.89904365,118.58,118.5,12.6571]
[1644298583676,80.89904365,118.58,118.51,48.08355838]
[1644298584277,80.89904365,118.58,118.5,12.6571]
[1644298584479,2.10775549,118.57,118.46,23.3174]
[1644298584678,12.6598,118.54,118.47,22.8952]
[1644298585477,12.6598,118.54,118.48,36.94036037]
[1644298586078,12.6598,118.54,118.48,37.19036037]
[1644298587277,36.0044,118.55,118.48,37.19036037]
[1644298587679,42.0044,118.55,118.48,37.19036037]
[1644298588780,42.0044,118.55,118.48,49.84936037]
[1644298590184,29.3456,118.55,118.48,49.84936037]
[1644298591183,42.0041,118.55,118.48,49.84936037]
[1644298595490,84.13582861,118.55,118.48,49.84936037]
[1644298596395,84.13582861,118.55,118.48,37.19036037]
[1644298598113,84.13582861,118.55,118.48,49.84966037]
[1644298598314,78.13582861,118.55,118.48,49.84966037]
[1644298599213,36.0041,118.55,118.48,49.84966037]
[1644298599915,42.0041,118.55,118.48,49.84966037]
[1644298600218,87.31949743,118.55,118.48,49.84966037]
[1644298600715,42.0041,118.55,118.48,49.84966037]
[1644298601816,87.68387385,118.55,118.48,49.84966037]
[1644298606921,42.0041,118.55,118.48,49.84966037]
[1644298607321,6.0,118.55,118.48,49.84966037]
[1644298607521,6.0,118.55,118.48,55.84966037]
[1644298607723,23.949,118.59,118.49,1.73525191]
[1644298607922,69.04438913,118.59,118.52,12.6551]
[1644298608121,69.04438913,118.59,118.53,40.15314586]
[1644298608621,48.07739374,118.57,118.53,40.15314586]
[1644298608822,12.6557,118.58,118.53,40.15314586]
[1644298609022,23.949,118.59,118.53,40.15314586]
[1644298609222,23.949,118.59,118.53,40.40314586]
[1644298609422,29.949,118.59,118.53,40.40314586]
[1644298609821,67.05502518,118.59,118.53,40.40314586]
[1644298610022,67.05502518,118.59,118.53,0.25]
[1644298610224,79.70912518,118.59,118.5,28.7328]
[1644298610523,85.70912518,118.59,118.5,22.7328]
[1644298610722,79.70912518,118.59,118.5,22.7328]
[1644298610923,85.70912518,118.59,118.51,42.44177838]
[1644298611622,79.70912518,118.59,118.51,42.69177838]
[1644298611823,79.70912518,118.59,118.51,55.34777838]
[1644298612027,79.70912518,118.59,118.51,79.77217838]
[1644298612723,79.70912518,118.59,118.51,79.52217838]
[1644298614224,79.70912518,118.59,118.51,79.77217838]
[1644298614424,81.81688067,118.59,118.46,42.91148749]
[1644298614626,12.17,118.58,118.47,24.7425]
[1644298614825,12.6603,118.55,118.47,24.7425]
[1644298615024,24.8393,118.54,118.47,24.7425]
[1644298615428,46.02500037,118.56,118.48,46.01883965]
[1644298615625,46.02500037,118.56,118.49,12.6581]
[1644298615830,46.02500037,118.56,118.5,43.71916966]
[1644298616429,46.02500037,118.56,118.5,43.96916966]
[1644298616631,12.6585,118.55,118.5,43.96916966]
[1644298616828,12.6585,118.55,118.5,56.62606966]
[1644298625533,12.6585,118.55,118.49,12.6582]
[1644298625833,12.6585,118.55,118.47,66.9323]
[1644298625834,14.76625549,118.55,118.47,24.7425]
[1644298626033,12.6609,118.52,118.47,24.7425]
[1644298626433,12.6609,118.52,118.48,34.40347996]
[1644298626833,12.6609,118.52,118.47,24.7425]
[1644298627036,12.6609,118.52,118.46,0.74148749]
[1644298627037,12.6609,118.52,118.46,13.40298749]
[1644298627233,20.5519,118.52,118.46,0.74148749]
[1644298627435,23.3764,118.51,118.46,0.71748749]
[1644298627636,12.6646,118.5,118.46,0.71748749]
[1644298628538,40.43628782,118.49,118.46,0.71748749]
[1644298628737,40.43628782,118.49,118.47,6.06439994]
[1644298628945,12.6646,118.5,118.47,6.06439994]
[1644298630038,57.98981293,118.5,118.47,6.06439994]
[1644298630438,12.6646,118.5,118.47,6.06439994]
[1644298630841,12.6646,118.5,118.4,24.6818]
[1644298631141,12.6677,118.47,118.35,2.37341781]
[1644298631340,12.6677,118.47,118.36,14.53555494]
[1644298631341,23.73982001,118.47,118.36,14.53555494]
[1644298631541,22.7486,118.46,118.36,14.53555494]
[1644298631740,42.98090912,118.45,118.36,14.53555494]
[1644298631939,57.25866461,118.45,118.34,40.39502282]
[1644298632142,72.53533347,118.45,118.34,40.39502282]
[1644298632344,45.12790692,118.43,118.34,40.39502282]
[1644298632551,68.56440692,118.43,118.34,40.39502282]
[1644298633142,23.4365,118.43,118.34,40.39502282]
[1644298633344,12.6725,118.43,118.34,40.39502282]
[1644298633743,46.1486,118.44,118.34,40.39502282]
[1644298633943,54.4078,118.47,118.34,40.39502282]
[1644298634140,39.35511787,118.45,118.34,59.06682282]
[1644298634540,39.35511787,118.45,118.34,53.31682282]
[1644298635340,39.35511787,118.45,118.34,53.06682282]
[1644298635540,23.4099,118.44,118.34,53.06682282]
[1644298636140,42.63488563,118.43,118.34,53.06682282]
[1644298637248,55.30648563,118.43,118.34,53.06682282]
[1644298637543,55.30648563,118.43,118.34,53.31682282]
[1644298638268,12.6716,118.43,118.34,53.31682282]
[1644298638444,23.4099,118.44,118.34,53.31682282]
[1644298638644,23.4099,118.44,118.34,67.80582282]
[1644298639045,23.4099,118.44,118.34,79.97582282]
[1644298640347,47.40200588,118.45,118.34,79.97582282]
[1644298640549,6.0,118.45,118.35,24.0943]
[1644298640751,24.6601,118.46,118.37,12.668]
[1644298640950,30.6601,118.46,118.37,12.668]
[1644298641151,30.6601,118.46,118.37,0.25]
[1644298641351,30.6601,118.46,118.35,24.0943]
[1644298641551,35.19535051,118.45,118.36,35.45857595]
[1644298641753,12.671,118.44,118.36,35.45857595]
[1644298641953,45.09829104,118.43,118.36,35.45857595]
[1644298642755,45.09829104,118.43,118.36,35.70857595]
[1644298643453,57.76999104,118.43,118.36,35.70857595]
[1644298644653,57.76999104,118.43,118.36,35.45857595]
[1644298645556,63.76999104,118.43,118.36,35.45857595]
[1644298646759,63.76999104,118.43,118.36,35.48257595]
[1644298646959,18.6717,118.43,118.36,35.48257595]
[1644298647163,24.8254,118.44,118.36,35.73257595]
[1644298648461,24.8254,118.44,118.36,48.40217595]
[1644298649363,71.76874668,118.44,118.36,48.40217595]
[1644298649662,71.76874668,118.44,118.36,35.48257595]
[1644298650064,77.76874668,118.44,118.36,35.48257595]
[1644298650767,90.43944668,118.44,118.36,35.48257595]
[1644298650964,90.43944668,118.44,118.36,35.73257595]
[1644298654495,90.43944668,118.44,118.36,35.48257595]
[1644298654701,90.43944668,118.44,118.36,35.73257595]
[1644298656098,84.43944668,118.44,118.36,35.70857595]
[1644298656498,84.43944668,118.44,118.36,35.73257595]
[1644298658410,37.4961,118.44,118.36,35.73257595]
[1644298658613,37.4961,118.44,118.36,48.40217595]
[1644298659505,52.60576886,118.46,118.36,48.40217595]
[1644298659705,82.84046886,118.46,118.37,23.4439]
[1644298659906,21.27666886,118.46,118.38,12.667]
[1644298660106,39.51136886,118.49,118.38,18.667]
[1644298660306,39.51136886,118.49,118.39,23.4439]
[1644298660606,58.17626886,118.49,118.4,39.5440041]
[1644298660806,58.17626886,118.49,118.4,39.7940041]
[1644298661011,58.17626886,118.49,118.4,60.5930041]
[1644298661410,39.51136886,118.49,118.4,60.5930041]
[1644298662007,24.2347,118.49,118.4,60.5930041]
[1644298662210,69.72683425,118.49,118.4,60.5930041]
[1644298662409,75.72683425,118.49,118.4,60.5930041]
[1644298662611,30.2347,118.49,118.4,60.5930041]
[1644298663712,42.8997,118.49,118.4,60.5930041]
[1644298663909,42.8997,118.49,118.4,52.4590041]
[1644298664530,45.00745549,118.49,118.4,52.4590041]
[1644298664709,42.8997,118.49,118.4,52.4590041]
[1644298665913,36.5698407,118.48,118.4,52.4590041]
[1644298667714,49.2356407,118.48,118.4,52.4590041]
[1644298670014,12.6658,118.48,118.4,52.4590041]
[1644298670216,12.6644,118.5,118.4,52.4590041]
[1644298670416,24.5995,118.53,118.4,64.1470041]
[1644298670617,2.43918659,118.56,118.4,84.05214862]
[1644298670816,12.20656125,118.56,118.41,48.9816]
[1644298671017,40.44120093,118.56,118.45,12.658]
[1644298671216,40.44120093,118.56,118.46,41.27656484]
[1644298671720,40.44120093,118.56,118.46,41.52656484]
[1644298672238,40.44120093,118.56,118.46,47.52656484]
[1644298672838,59.09820093,118.56,118.48,54.14941936]
[1644298673039,35.6182067,118.54,118.48,41.49241936]
[1644298673240,6.03656125,118.56,118.48,41.74241936]
[1644298673538,7.23553564,118.56,118.48,41.74241936]
[1644298673738,12.6602,118.53,118.48,41.74241936]
[1644298674740,62.43946046,118.55,118.48,41.74241936]
[1644298675142,2.10775549,118.54,118.44,42.197]
[1644298675341,69.30658726,118.53,118.39,2.46679969]
[1644298675541,234.76556165,118.53,118.39,1.2822349]
[1644298675740,0.31513952,118.49,118.39,1.2822349]
[1644298675939,165.45897439,118.48,118.39,1.2822349]
[1644298676142,46.87104728,118.47,118.39,1.2822349]
[1644298676340,162.9777651,118.46,118.31,1.18456479]
[1644298676541,232.1500651,118.46,118.31,1.18456479]
[1644298676739,234.25782059,118.46,118.31,1.18456479]
[1644298677343,38.81966046,118.45,118.32,36.74481179]
[1644298677543,12.17,118.44,118.32,36.74481179]
[1644298677741,52.32870812,118.43,118.32,36.74481179]
[1644298677941,64.49870812,118.43,118.32,36.74481179]
[1644298678341,73.24270812,118.43,118.32,36.74481179]
[1644298678541,26.94965549,118.43,118.32,36.74481179]
[1644298678742,24.8419,118.43,118.32,42.74481179]
[1644298679041,24.8419,118.43,118.32,57.14621836]
[1644298679042,12.17,118.43,118.32,57.14621836]
[1644298679242,12.17,118.43,118.32,55.41541179]
[1644298679441,65.93924527,118.43,118.32,42.74481179]
[1644298679642,19.938,118.43,118.32,42.74481179]
[1644298679844,18.17,118.43,118.32,42.74481179]
[1644298681745,30.8408,118.43,118.32,55.66601179]
[1644298683048,18.17,118.43,118.32,55.66601179]
[1644298684150,6.0,118.43,118.32,57.39681836]
[1644298684346,14.27775549,118.42,118.32,36.74481179]
[1644298684748,12.17,118.41,118.32,36.74481179]
[1644298684948,14.27775549,118.41,118.32,36.74481179]
[1644298685147,34.82682686,118.4,118.32,36.74481179]
[1644298685445,12.17,118.39,118.32,36.74481179]
[1644298685947,24.8459,118.39,118.32,36.99481179]
[1644298686346,41.8543324,118.38,118.32,36.74481179]
[1644298686547,12.17,118.39,118.32,36.74481179]
[1644298687248,90.6934,118.41,118.32,36.74481179]
[1644298687249,48.4371,118.41,118.32,48.11081179]
[1644298687449,60.6071,118.41,118.32,48.11081179]
[1644298687649,48.4371,118.41,118.32,48.36081179]
[1644298687849,48.4371,118.41,118.32,54.36081179]
[1644298688349,48.4371,118.41,118.32,42.99481179]
[1644298688551,54.4371,118.41,118.32,36.74481179]
[1644298689753,67.1104,118.41,118.32,36.99481179]
[1644298689958,111.98679891,118.41,118.32,36.99481179]
[1644298690655,111.98679891,118.41,118.33,0.024]
[1644298690955,67.1104,118.41,118.33,0.024]
[1644298692355,105.37806038,118.41,118.33,0.024]
[1644298692956,117.54806038,118.41,118.33,0.024]
[1644298698561,69.11096038,118.41,118.33,0.024]
[1644298699663,71.21871587,118.41,118.33,0.024]
[1644298700562,12.6796,118.37,118.3,0.024]
[1644298700763,23.8099,118.36,118.26,0.024]
[1644298701362,41.49419098,118.35,118.26,45.68101152]
[1644298701565,23.8099,118.36,118.26,51.68101152]
[1644298701764,36.4894,118.36,118.26,51.93101152]
[1644298702165,23.8099,118.36,118.26,51.93101152]
[1644298702366,23.8099,118.36,118.27,1.7422665]
[1644298702565,22.7258,118.38,118.28,39.96465209]
[1644298702869,22.7258,118.38,118.29,0.024]
[1644298703265,22.7258,118.38,118.29,1.7662665]
[1644298703465,22.7258,118.38,118.29,0.024]
[1644298703864,28.7258,118.38,118.29,0.024]
[1644298704066,41.75563869,118.37,118.29,0.024]
[1644298704466,77.97173869,118.37,118.29,0.024]
[1644298705788,36.2161,118.37,118.29,0.024]
[1644298707070,37.95412238,118.36,118.29,0.024]
[1644298707268,36.2161,118.37,118.28,41.39921688]
[1644298707470,36.2161,118.37,118.28,40.21465209]
[1644298707668,36.2161,118.37,118.29,0.024]
[1644298708272,80.59990135,118.37,118.29,0.024]
[1644298708669,92.76990135,118.37,118.29,0.024]
[1644298709472,80.59990135,118.37,118.29,0.024]
[1644298709772,6.0,118.37,118.29,1.7662665]
[1644298710175,6.0,118.37,118.29,2.0162665]
[1644298710373,22.7258,118.38,118.29,2.0162665]
[1644298710577,28.7258,118.38,118.3,42.44332516]
[1644298710778,28.7258,118.38,118.3,42.69332516]
[1644298710975,22.7258,118.38,118.31,1.7422665]
[1644298711174,22.7258,118.38,118.31,7.7662665]
[1644298711377,22.7258,118.38,118.31,6.274]
[1644298711774,22.7258,118.38,118.31,0.274]
[1644298711979,22.7258,118.38,118.32,48.63370934]
[1644298712175,22.7258,118.38,118.32,54.63370934]
[1644298712475,22.7258,118.38,118.32,54.88370934]
[1644298713577,24.471,118.4,118.32,54.88370934]
[1644298713778,24.471,118.4,118.32,54.90770934]
[1644298714279,60.86087084,118.4,118.32,54.90770934]
[1644298714678,66.86087084,118.4,118.32,54.90770934]
[1644298714878,30.471,118.4,118.32,54.90770934]
[1644298716079,12.17,118.41,118.32,69.32337584]
[1644298716278,23.0382,118.42,118.33,0.024]
[1644298716479,23.3303,118.41,118.33,0.024]
[1644298717079,36.0037,118.41,118.33,0.024]
[1644298718684,44.17166967,118.4,118.33,0.024]
[1644298718886,56.84566967,118.4,118.33,0.024]
[1644298719083,56.84566967,118.4,118.32,54.88370934]
[1644298719283,56.84566967,118.4,118.32,54.90770934]
[1644298719483,69.01566967,118.4,118.32,48.63370934]
[1644298719685,75.01566967,118.4,118.32,48.63370934]
[1644298720903,30.844,118.4,118.32,48.88370934]
[1644298721309,12.674,118.4,118.32,48.88370934]
[1644298721904,12.674,118.4,118.32,48.90770934]
[1644298722107,24.23717439,118.42,118.32,69.32895168]
[1644298722307,23.0382,118.42,118.33,0.024]
[1644298722705,23.0382,118.42,118.33,1.77154234]
[1644298722907,23.0382,118.42,118.34,0.024]
[1644298723104,23.0382,118.42,118.35,12.6698]
[1644298723306,23.0382,118.42,118.36,46.68610187]
[1644298723707,29.0382,118.42,118.36,46.93610187]
[1644298724806,6.0,118.42,118.36,59.60590187]
[1644298725407,24.1945,118.44,118.36,59.60590187]
[1644298725607,30.1945,118.44,118.36,59.60590187]
[1644298725808,42.864,118.44,118.36,59.60590187]
[1644298726211,39.97302777,118.43,118.36,46.93610187]
[1644298726709,52.14302777,118.43,118.36,46.93610187]
[1644298726910,12.6729,118.41,118.36,46.68610187]
[1644298727111,52.38090605,118.41,118.36,46.68610187]
[1644298727512,64.55090605,118.41,118.36,46.68610187]
[1644298727914,64.55090605,118.41,118.32,0.024]
[1644298728112,24.5244,118.4,118.32,0.024]
[1644298728312,12.6753,118.39,118.32,0.024]
[1644298728915,12.6753,118.39,118.32,42.38625813]
[1644298729214,12.6753,118.39,118.32,42.63625813]
[1644298729815,55.15157822,118.39,118.32,42.63625813]
[1644298730815,55.15157822,118.39,118.32,42.61225813]
[1644298731419,2.10775549,118.38,118.28,0.024]
[1644298731615,12.6794,118.36,118.3,0.024]
[1644298731815,12.6794,118.36,118.28,0.024]
[1644298732415,12.6794,118.36,118.28,41.96768998]
[1644298732617,12.6794,118.36,118.28,54.64648998]
[1644298733021,36.9794,118.36,118.28,54.64648998]
[1644298733624,36.9794,118.36,118.28,54.89648998]
[1644298734823,42.9794,118.36,118.28,54.89648998]
[1644298735322,43.60868254,118.35,118.28,54.89648998]
[1644298735523,56.28788254,118.35,118.28,54.89648998]
[1644298735822,12.6792,118.35,118.28,54.89648998]
[1644298739129,12.6792,118.35,118.32,0.5526437]
[1644298739327,24.3,118.36,118.32,0.5526437]
[1644298739548,24.1992,118.39,118.32,0.5526437]
[1644298739549,47.6208,118.39,118.32,0.5526437]
[1644298740130,47.6208,118.39,118.33,38.94614999]
[1644298740328,47.6208,118.39,118.33,39.19614999]
[1644298740527,60.296,118.39,118.33,39.19614999]
[1644298747455,60.296,118.39,118.37,0.5526437]
[1644298747654,12.6752,118.39,118.37,0.5526437]
[1644298748455,18.73959994,118.39,118.37,0.5526437]
[1644298749354,18.73959994,118.39,118.37,39.52630834]
[1644298749557,12.6752,118.39,118.37,39.52630834]
[1644298750355,12.6752,118.39,118.37,0.5526437]
[1644298751957,12.6733,118.4,118.37,0.5526437]
[1644298752558,12.6733,118.4,118.38,39.22543874]
[1644298752959,36.2745,118.41,118.38,50.48543874]
[1644298753160,24.28697439,118.43,118.38,50.73543874]
[1644298753361,23.088,118.43,118.38,50.73543874]
[1644298753560,29.088,118.43,118.38,50.73543874]
[1644298754359,29.088,118.43,118.38,39.47543874]
[1644298754560,6.0,118.43,118.38,52.14423874]
[1644298754962,1.19897439,118.46,118.38,58.14423874]
[1644298755360,7.19897439,118.46,118.38,58.14423874]
[1644298755560,6.0,118.46,118.38,58.14423874]
[1644298756062,43.38567642,118.47,118.38,58.14423874]
[1644298756461,12.6668,118.46,118.38,58.14423874]
[1644298757862,54.97303132,118.45,118.38,45.22543874]
[1644298758064,57.08078681,118.45,118.38,39.22543874]
[1644298758264,67.14303132,118.45,118.38,39.22543874]
[1644298759264,67.14303132,118.45,118.38,39.47543874]
[1644298759464,68.34200571,118.45,118.38,39.47543874]
[1644298759665,68.34200571,118.45,118.38,39.22543874]
[1644298759868,74.34200571,118.45,118.38,39.22543874]
[1644298760967,1.19897439,118.44,118.38,39.22543874]
[1644298761168,54.85860203,118.43,118.37,0.5526437]
[1644298761367,78.22930203,118.43,118.37,0.5526437]
[1644298761569,90.39930203,118.43,118.37,0.5526437]
[1644298763169,89.84665833,118.43,118.36,39.80863816]
[1644298764168,89.84665833,118.43,118.36,40.05863816]
[1644298764869,42.0426,118.43,118.36,40.05863816]
[1644298766071,85.43151349,118.43,118.36,40.05863816]
[1644298766773,69.0,118.42,118.27,2.37341781]
[1644298766973,69.0,118.42,118.17,6.32900228]
[1644298766974,2.10775549,118.29,118.17,9.61326795]
[1644298767171,12.17,118.29,118.19,2.37455539]
[1644298767771,22.91902862,118.29,118.2,41.66013153]